[Event "Titled Tuesday Blitz May 2 Early 2023"]
[White "Hayrapetyan, Hovik"]
[Black "Avazkhonov, Alikhon"]
[WhiteFideId "13302639"]
[BlackFideId "14208504"]
[WhiteElo "2348"]
[BlackElo "1739"]
[Result "1-0"]
[Round "11"]
[TimeControl "180+2"]
[Date "2023.05.03"]
[WhiteClock "0:00:01"]
[BlackClock "0:00:00"]

1. c4 {[%clk 0:00:01]}  e5 {[%clk 0:00:01]} 2. Nc3 {[%clk 0:00:01]}  d6 {[%clk 0:00:01]} 3. Nf3 {[%clk 0:00:01]}  f5 {[%clk 0:00:01]} 4. g3 {[%clk 0:00:01]}  Nf6 {[%clk 0:00:01]} 5. d3 {[%clk 0:00:01]}  Be7 {[%clk 0:00:01]} 6. Bg2 {[%clk 0:00:01]}  O-O {[%clk 0:00:01]} 7. O-O {[%clk 0:00:01]}  Nc6 {[%clk 0:00:01]} 8. Rb1 {[%clk 0:00:01]}  a5 {[%clk 0:00:01]} 9. a3 {[%clk 0:00:01]}  Qe8 {[%clk 0:00:01]} 10. b4 {[%clk 0:00:01]}  axb4 {[%clk 0:00:01]} 11. axb4 {[%clk 0:00:01]}  Nd8 {[%clk 0:00:01]} 12. b5 {[%clk 0:00:01]}  Ne6 {[%clk 0:00:01]} 13. Ng5 {[%clk 0:00:01]}  Nxg5 {[%clk 0:00:01]} 14. Bxg5 {[%clk 0:00:01]}  h6 {[%clk 0:00:01]} 15. Bxf6 {[%clk 0:00:01]}  Bxf6 {[%clk 0:00:01]} 16. Nd5 {[%clk 0:00:01]}  Bd8 {[%clk 0:00:01]} 17. Qc2 {[%clk 0:00:01]}  f4 {[%clk 0:00:01]} 18. c5 {[%clk 0:00:01]}  c6 {[%clk 0:00:01]} 19. bxc6 {[%clk 0:00:01]}  bxc6 {[%clk 0:00:01]} 20. cxd6 {[%clk 0:00:01]}  f3 {[%clk 0:00:01]} 21. Bxf3 {[%clk 0:00:01]}  Rxf3 {[%clk 0:00:01]} 22. exf3 {[%clk 0:00:01]}  cxd5 {[%clk 0:00:00]} 23. Rfe1 {[%clk 0:00:01]}  Qe6 {[%clk 0:00:00]} 24. d4 {[%clk 0:00:01]}  Qf5 {[%clk 0:00:00]} 25. Qc6 {[%clk 0:00:01]}  Ra6 {[%clk 0:00:00]} 26. Qe8+ {[%clk 0:00:01]}  Qf8 {[%clk 0:00:00]} 27. Qxf8+ {[%clk 0:00:01]}  Kxf8 {[%clk 0:00:00]} 28. Rb8 {[%clk 0:00:01]}  Rc6 {[%clk 0:00:00]} 29. d7 {[%clk 0:00:01]}  Bxd7 {[%clk 0:00:00]} 30. Rxd8+ {[%clk 0:00:01]}  Ke7 {[%clk 0:00:00]} 31. Ra8 {[%clk 0:00:01]} 1-0


[Site "https://www.chess.com"]

[Event "Titled Tuesday Blitz May 2 Early 2023"]
[White "Bayasgalan, Khishigbaatar"]
[Black "Kosakowski, Jakub"]
[WhiteFideId "4904311"]
[BlackFideId "1185080"]
[WhiteElo "2057"]
[BlackElo "2488"]
[Result "0-1"]
[Round "11"]
[TimeControl "180+2"]
[Date "2023.05.03"]
[WhiteClock "0:00:00"]
[BlackClock "0:00:00"]

1. d4 {[%clk 0:00:01]}  Nf6 {[%clk 0:00:01]} 2. c4 {[%clk 0:00:01]}  e6 {[%clk 0:00:01]} 3. Nc3 {[%clk 0:00:01]}  Bb4 {[%clk 0:00:01]} 4. Qc2 {[%clk 0:00:01]}  O-O {[%clk 0:00:01]} 5. e4 {[%clk 0:00:01]}  d5 {[%clk 0:00:01]} 6. cxd5 {[%clk 0:00:01]}  exd5 {[%clk 0:00:01]} 7. e5 {[%clk 0:00:01]}  Ne4 {[%clk 0:00:01]} 8. Bd3 {[%clk 0:00:01]}  c5 {[%clk 0:00:01]} 9. Bxe4 {[%clk 0:00:01]}  dxe4 {[%clk 0:00:01]} 10. dxc5 {[%clk 0:00:01]}  Nc6 {[%clk 0:00:01]} 11. Ne2 {[%clk 0:00:01]}  Nxe5 {[%clk 0:00:01]} 12. O-O {[%clk 0:00:01]}  Qd3 {[%clk 0:00:01]} 13. Qa4 {[%clk 0:00:01]}  Bxc5 {[%clk 0:00:00]} 14. Qxe4 {[%clk 0:00:01]}  Qxe4 {[%clk 0:00:00]} 15. Nxe4 {[%clk 0:00:01]}  Bb6 {[%clk 0:00:00]} 16. N2c3 {[%clk 0:00:01]}  Bf5 {[%clk 0:00:00]} 17. Nd6 {[%clk 0:00:01]}  Be6 {[%clk 0:00:00]} 18. Na4 {[%clk 0:00:00]}  Rfd8 {[%clk 0:00:00]} 19. Nxb6 {[%clk 0:00:00]}  axb6 {[%clk 0:00:00]} 20. Ne4 {[%clk 0:00:00]}  Bc4 {[%clk 0:00:00]} 21. Re1 {[%clk 0:00:00]}  Nd3 {[%clk 0:00:00]} 22. Rd1 {[%clk 0:00:00]}  Nxc1 {[%clk 0:00:00]} 23. Rdxc1 {[%clk 0:00:00]}  Rxa2 {[%clk 0:00:00]} 24. Rxa2 {[%clk 0:00:00]}  Bxa2 {[%clk 0:00:00]} 25. f3 {[%clk 0:00:00]}  Kf8 {[%clk 0:00:00]} 26. Rc7 {[%clk 0:00:00]}  Bd5 {[%clk 0:00:00]} 27. Nd2 {[%clk 0:00:00]}  b5 {[%clk 0:00:00]} 28. Kf2 {[%clk 0:00:00]}  Bc6 {[%clk 0:00:00]} 29. Ke3 {[%clk 0:00:00]}  h6 {[%clk 0:00:00]} 30. Nb3 {[%clk 0:00:00]}  Rd1 {[%clk 0:00:00]} 31. Nd4 {[%clk 0:00:00]}  Rb1 {[%clk 0:00:00]} 32. b3 {[%clk 0:00:00]}  Rb2 {[%clk 0:00:00]} 33. g4 {[%clk 0:00:00]}  Rxh2 {[%clk 0:00:00]} 34. Nf5 {[%clk 0:00:00]}  Kg8 {[%clk 0:00:00]} 35. Rc8+ {[%clk 0:00:00]}  Kh7 {[%clk 0:00:00]} 36. Rc7 {[%clk 0:00:00]}  Rb2 {[%clk 0:00:00]} 37. Rxf7 {[%clk 0:00:00]}  Rxb3+ {[%clk 0:00:00]} 38. Kd4 {[%clk 0:00:00]}  Rxf3 {[%clk 0:00:00]} 39. Rxg7+ {[%clk 0:00:00]}  Kh8 {[%clk 0:00:00]} 40. Rg6 {[%clk 0:00:00]}  b4 {[%clk 0:00:00]} 41. Rxh6+ {[%clk 0:00:00]}  Kg8 {[%clk 0:00:00]} 42. Ne7+ {[%clk 0:00:00]}  Kg7 {[%clk 0:00:00]} 43. Rh2 {[%clk 0:00:00]}  Bd7 {[%clk 0:00:00]} 44. g5 {[%clk 0:00:00]}  b3 {[%clk 0:00:00]} 45. Nd5 {[%clk 0:00:00]}  Be6 {[%clk 0:00:00]} 46. Nc3 {[%clk 0:00:00]}  Kg6 {[%clk 0:00:00]} 47. Rh6+ {[%clk 0:00:00]}  Kf7 {[%clk 0:00:00]} 48. Rh7+ {[%clk 0:00:00]}  Kg6 {[%clk 0:00:00]} 49. Rh6+ {[%clk 0:00:00]}  Kf7 {[%clk 0:00:00]} 50. Rh7+ {[%clk 0:00:00]}  Kg8 {[%clk 0:00:00]} 51. Rxb7 {[%clk 0:00:00]}  Rf5 {[%clk 0:00:00]} 52. Ne4 {[%clk 0:00:00]}  Rd5+ {[%clk 0:00:00]} 53. Ke3 {[%clk 0:00:00]}  Rd1 {[%clk 0:00:00]} 54. Nf6+ {[%clk 0:00:00]}  Kf8 {[%clk 0:00:00]} 55. g6 {[%clk 0:00:00]}  Rg1 {[%clk 0:00:00]} 56. Nh7+ {[%clk 0:00:00]}  Ke8 {[%clk 0:00:00]} 57. Nf6+ {[%clk 0:00:00]}  Kf8 {[%clk 0:00:00]} 58. Nh7+ {[%clk 0:00:00]}  Ke8 {[%clk 0:00:00]} 59. g7 {[%clk 0:00:00]}  Kd8 {[%clk 0:00:00]} 60. Nf6 {[%clk 0:00:00]}  Rg6 {[%clk 0:00:00]} 61. Ne4 {[%clk 0:00:00]}  Bd5 {[%clk 0:00:00]} 62. Rb6 {[%clk 0:00:00]}  Rxb6 {[%clk 0:00:00]} 63. Nc3 {[%clk 0:00:00]}  Bg8 {[%clk 0:00:00]} 64. Kd3 {[%clk 0:00:00]}  Rb7 {[%clk 0:00:00]} 65. Kd2 {[%clk 0:00:00]}  Rxg7 {[%clk 0:00:00]} 66. Kc1 {[%clk 0:00:00]}  Rc7 {[%clk 0:00:00]} 67. Kb2 {[%clk 0:00:00]}  Rxc3 {[%clk 0:00:00]} 68. Kxc3 {[%clk 0:00:00]}  Kc7 {[%clk 0:00:00]} 69. Kb2 {[%clk 0:00:00]}  Kb6 {[%clk 0:00:00]} 70. Kb1 {[%clk 0:00:00]}  Kc5 {[%clk 0:00:00]} 71. Kb2 {[%clk 0:00:00]}  Kb4 {[%clk 0:00:00]} 72. Kb1 {[%clk 0:00:00]}  Kc3 {[%clk 0:00:00]} 73. Kc1 {[%clk 0:00:00]}  Bc4 {[%clk 0:00:00]} 74. Kb1 {[%clk 0:00:00]}  Be2 {[%clk 0:00:00]} 75. Ka1 {[%clk 0:00:00]}  b2+ {[%clk 0:00:00]} 76. Ka2 {[%clk 0:00:00]}  Bc4+ {[%clk 0:00:00]} 77. Ka3 {[%clk 0:00:00]}  b1=Q {[%clk 0:00:00]} 78. Ka4 {[%clk 0:00:00]}  Qa2# {[%clk 0:00:00]} 0-1


[Site "https://www.chess.com"]

[Event "Titled Tuesday Blitz May 2 Early 2023"]
[White "Djordjevic, Vuk"]
[Black "Novik, Maxim"]
[WhiteFideId "902098"]
[BlackFideId "4102924"]
[WhiteElo "2452"]
[BlackElo "2287"]
[Result "0-1"]
[Round "11"]
[TimeControl "180+2"]
[Date "2023.05.03"]
[WhiteClock "0:00:00"]
[BlackClock "0:00:00"]

1. d4 {[%clk 0:00:01]}  Nf6 {[%clk 0:00:01]} 2. Bg5 {[%clk 0:00:01]}  c5 {[%clk 0:00:01]} 3. Bxf6 {[%clk 0:00:01]}  exf6 {[%clk 0:00:01]} 4. Nc3 {[%clk 0:00:01]}  d5 {[%clk 0:00:01]} 5. e3 {[%clk 0:00:01]}  Nc6 {[%clk 0:00:01]} 6. Nge2 {[%clk 0:00:01]}  Be6 {[%clk 0:00:01]} 7. g3 {[%clk 0:00:01]}  Qb6 {[%clk 0:00:01]} 8. Rb1 {[%clk 0:00:01]}  Be7 {[%clk 0:00:01]} 9. Bg2 {[%clk 0:00:01]}  Rd8 {[%clk 0:00:01]} 10. O-O {[%clk 0:00:01]}  O-O {[%clk 0:00:01]} 11. Nf4 {[%clk 0:00:01]}  cxd4 {[%clk 0:00:01]} 12. Ncxd5 {[%clk 0:00:01]}  Bxd5 {[%clk 0:00:01]} 13. Nxd5 {[%clk 0:00:01]}  Rxd5 {[%clk 0:00:01]} 14. Bxd5 {[%clk 0:00:01]}  dxe3 {[%clk 0:00:01]} 15. fxe3 {[%clk 0:00:01]}  Ne5 {[%clk 0:00:01]} 16. Re1 {[%clk 0:00:01]}  Rd8 {[%clk 0:00:01]} 17. Kg2 {[%clk 0:00:01]}  f5 {[%clk 0:00:00]} 18. Qd4 {[%clk 0:00:00]}  Qc7 {[%clk 0:00:00]} 19. c4 {[%clk 0:00:00]}  Bf6 {[%clk 0:00:00]} 20. Qf4 {[%clk 0:00:00]}  g6 {[%clk 0:00:00]} 21. e4 {[%clk 0:00:00]}  Qa5 {[%clk 0:00:00]} 22. exf5 {[%clk 0:00:00]}  Nd3 {[%clk 0:00:00]} 23. Qf3 {[%clk 0:00:00]}  Nxe1+ {[%clk 0:00:00]} 24. Rxe1 {[%clk 0:00:00]}  Qxe1 {[%clk 0:00:00]} 25. fxg6 {[%clk 0:00:00]}  Qd2+ {[%clk 0:00:00]} 26. Kf1 {[%clk 0:00:00]}  Qc1+ {[%clk 0:00:00]} 27. Kg2 {[%clk 0:00:00]}  Qxb2+ {[%clk 0:00:00]} 28. Kh3 {[%clk 0:00:00]}  hxg6 {[%clk 0:00:00]} 29. Bxb7 {[%clk 0:00:00]}  Kg7 {[%clk 0:00:00]} 30. Bd5 {[%clk 0:00:00]}  Rh8+ {[%clk 0:00:00]} 31. Kg4 {[%clk 0:00:00]}  Qd4+ {[%clk 0:00:00]} 32. Qf4 {[%clk 0:00:00]}  Qxf4+ {[%clk 0:00:00]} 33. Kxf4 {[%clk 0:00:00]}  Rxh2 {[%clk 0:00:00]} 0-1


[Site "https://www.chess.com"]

[Event "Titled Tuesday Blitz May 2 Early 2023"]
[White "Vlassov, Nikolai"]
[Black "Kucuksari, Kaan"]
[WhiteFideId "4103360"]
[BlackFideId "6380166"]
[WhiteElo "2324"]
[BlackElo "2364"]
[Result "1-0"]
[Round "11"]
[TimeControl "180+2"]
[Date "2023.05.03"]
[WhiteClock "0:00:00"]
[BlackClock "0:00:00"]

1. e4 {[%clk 0:00:01]}  c5 {[%clk 0:00:01]} 2. c3 {[%clk 0:00:01]}  Nc6 {[%clk 0:00:01]} 3. d4 {[%clk 0:00:01]}  cxd4 {[%clk 0:00:01]} 4. cxd4 {[%clk 0:00:01]}  d5 {[%clk 0:00:01]} 5. exd5 {[%clk 0:00:01]}  Qxd5 {[%clk 0:00:01]} 6. Nf3 {[%clk 0:00:01]}  Bg4 {[%clk 0:00:01]} 7. Nc3 {[%clk 0:00:01]}  Qd8 {[%clk 0:00:01]} 8. d5 {[%clk 0:00:01]}  Bxf3 {[%clk 0:00:01]} 9. gxf3 {[%clk 0:00:01]}  Ne5 {[%clk 0:00:01]} 10. Bf4 {[%clk 0:00:01]}  Nd7 {[%clk 0:00:01]} 11. Qb3 {[%clk 0:00:01]}  Ngf6 {[%clk 0:00:01]} 12. Qxb7 {[%clk 0:00:01]}  g5 {[%clk 0:00:01]} 13. Bc7 {[%clk 0:00:01]}  Qc8 {[%clk 0:00:01]} 14. Ba6 {[%clk 0:00:01]}  Qxb7 {[%clk 0:00:01]} 15. Bxb7 {[%clk 0:00:01]}  Rd8 {[%clk 0:00:01]} 16. Bxd8 {[%clk 0:00:01]}  Kxd8 {[%clk 0:00:01]} 17. Rc1 {[%clk 0:00:01]}  Bg7 {[%clk 0:00:01]} 18. Nb5 {[%clk 0:00:01]}  Nb6 {[%clk 0:00:01]} 19. Nxa7 {[%clk 0:00:01]}  Kd7 {[%clk 0:00:01]} 20. Bc6+ {[%clk 0:00:01]}  Kd6 {[%clk 0:00:01]} 21. Nb5+ {[%clk 0:00:01]}  Ke5 {[%clk 0:00:01]} 22. O-O {[%clk 0:00:01]}  Nfxd5 {[%clk 0:00:01]} 23. Rfe1+ {[%clk 0:00:01]}  Kf6 {[%clk 0:00:01]} 24. Nc3 {[%clk 0:00:01]}  Nf4 {[%clk 0:00:01]} 25. Red1 {[%clk 0:00:00]}  e6 {[%clk 0:00:01]} 26. Kf1 {[%clk 0:00:00]}  Rb8 {[%clk 0:00:01]} 27. Ne2 {[%clk 0:00:00]}  Nxe2 {[%clk 0:00:01]} 28. Kxe2 {[%clk 0:00:00]}  Kg6 {[%clk 0:00:01]} 29. b3 {[%clk 0:00:00]}  h5 {[%clk 0:00:01]} 30. h3 {[%clk 0:00:00]}  h4 {[%clk 0:00:01]} 31. Rd3 {[%clk 0:00:00]}  Be5 {[%clk 0:00:01]} 32. a4 {[%clk 0:00:00]}  Bf4 {[%clk 0:00:01]} 33. Rc5 {[%clk 0:00:00]}  Rc8 {[%clk 0:00:00]} 34. Be4+ {[%clk 0:00:00]}  f5 {[%clk 0:00:00]} 35. Rxc8 {[%clk 0:00:00]}  Nxc8 {[%clk 0:00:00]} 36. Bb7 {[%clk 0:00:00]}  Nd6 {[%clk 0:00:00]} 37. Bc6 {[%clk 0:00:00]}  Nf7 {[%clk 0:00:00]} 38. Be8 {[%clk 0:00:00]}  Kf6 {[%clk 0:00:00]} 39. Bxf7 {[%clk 0:00:00]}  Kxf7 {[%clk 0:00:00]} 40. Rd7+ {[%clk 0:00:00]}  Kg6 {[%clk 0:00:00]} 41. a5 {[%clk 0:00:00]}  g4 {[%clk 0:00:00]} 42. fxg4 {[%clk 0:00:00]}  fxg4 {[%clk 0:00:00]} 43. hxg4 {[%clk 0:00:00]}  h3 {[%clk 0:00:00]} 44. Kf1 {[%clk 0:00:00]}  Bb8 {[%clk 0:00:00]} 45. a6 {[%clk 0:00:00]}  h2 {[%clk 0:00:00]} 46. Kg2 {[%clk 0:00:00]} 1-0


[Site "https://www.chess.com"]

[Event "Titled Tuesday Blitz May 2 Early 2023"]
[White "Korchmar, Vasiliy"]
[Black "Ibadov, Dashgyn"]
[WhiteFideId "24131750"]
[BlackFideId "24107514"]
[WhiteElo "2370"]
[BlackElo "2208"]
[Result "1-0"]
[Round "11"]
[TimeControl "180+2"]
[Date "2023.05.03"]
[WhiteClock "0:00:00"]
[BlackClock "0:00:00"]

1. e4 {[%clk 0:00:01]}  e6 {[%clk 0:00:01]} 2. d4 {[%clk 0:00:01]}  d5 {[%clk 0:00:01]} 3. e5 {[%clk 0:00:01]}  c5 {[%clk 0:00:01]} 4. c3 {[%clk 0:00:01]}  Qb6 {[%clk 0:00:01]} 5. Nf3 {[%clk 0:00:01]}  Nc6 {[%clk 0:00:01]} 6. Be2 {[%clk 0:00:01]}  Nh6 {[%clk 0:00:01]} 7. Bxh6 {[%clk 0:00:01]}  gxh6 {[%clk 0:00:01]} 8. Qd2 {[%clk 0:00:01]}  Bg7 {[%clk 0:00:01]} 9. O-O {[%clk 0:00:01]}  O-O {[%clk 0:00:01]} 10. Na3 {[%clk 0:00:01]}  Bd7 {[%clk 0:00:01]} 11. Nc2 {[%clk 0:00:01]}  f6 {[%clk 0:00:01]} 12. exf6 {[%clk 0:00:01]}  Rxf6 {[%clk 0:00:01]} 13. dxc5 {[%clk 0:00:01]}  Qxc5 {[%clk 0:00:01]} 14. Ncd4 {[%clk 0:00:01]}  Raf8 {[%clk 0:00:01]} 15. Bd3 {[%clk 0:00:01]}  Qd6 {[%clk 0:00:01]} 16. Rae1 {[%clk 0:00:01]}  Be8 {[%clk 0:00:00]} 17. Qc2 {[%clk 0:00:00]}  Nxd4 {[%clk 0:00:00]} 18. cxd4 {[%clk 0:00:00]}  Rxf3 {[%clk 0:00:00]} 19. gxf3 {[%clk 0:00:00]}  Bxd4 {[%clk 0:00:00]} 20. Kh1 {[%clk 0:00:00]}  Bh5 {[%clk 0:00:00]} 21. Rg1+ {[%clk 0:00:00]}  Kh8 {[%clk 0:00:00]} 22. Rg3 {[%clk 0:00:00]}  Bxf3+ {[%clk 0:00:00]} 23. Kg1 {[%clk 0:00:00]}  e5 {[%clk 0:00:00]} 24. Qd2 {[%clk 0:00:00]}  e4 {[%clk 0:00:00]} 25. Be2 {[%clk 0:00:00]}  Be5 {[%clk 0:00:00]} 26. Bxf3 {[%clk 0:00:00]}  Bxg3 {[%clk 0:00:00]} 27. hxg3 {[%clk 0:00:00]}  Rxf3 {[%clk 0:00:00]} 28. Rxe4 {[%clk 0:00:00]}  Rxg3+ {[%clk 0:00:00]} 29. Kf1 {[%clk 0:00:00]}  Rg1+ {[%clk 0:00:00]} 30. Kxg1 {[%clk 0:00:00]}  Qg6+ {[%clk 0:00:00]} 31. Kf1 {[%clk 0:00:00]}  Qxe4 {[%clk 0:00:00]} 32. Qc3+ {[%clk 0:00:00]}  d4 {[%clk 0:00:00]} 33. Qc8+ {[%clk 0:00:00]}  Kg7 {[%clk 0:00:00]} 34. Qd7+ {[%clk 0:00:00]}  Kg6 {[%clk 0:00:00]} 35. Qd6+ {[%clk 0:00:00]}  Kf5 {[%clk 0:00:00]} 36. Qd7+ {[%clk 0:00:00]}  Kf4 {[%clk 0:00:00]} 37. Qf7+ {[%clk 0:00:00]}  Ke5 {[%clk 0:00:00]} 38. Qe7+ {[%clk 0:00:00]}  Kf4 {[%clk 0:00:00]} 39. Qf6+ {[%clk 0:00:00]}  Kg4 {[%clk 0:00:00]} 40. Qg7+ {[%clk 0:00:00]}  Kh5 {[%clk 0:00:00]} 41. Qf7+ {[%clk 0:00:00]} 1-0


[Site "https://www.chess.com"]

[Event "Titled Tuesday Blitz May 2 Early 2023"]
[White "Golichenko, Ilija"]
[Black "Gurevich, Dmitry"]
[WhiteFideId "14117223"]
[BlackFideId "2000407"]
[WhiteElo "2339"]
[BlackElo "2506"]
[Result "0-1"]
[Round "11"]
[TimeControl "180+2"]
[Date "2023.05.03"]
[WhiteClock "0:00:00"]
[BlackClock "0:00:00"]

1. d4 {[%clk 0:00:01]}  Nf6 {[%clk 0:00:01]} 2. c4 {[%clk 0:00:01]}  a6 {[%clk 0:00:01]} 3. Nc3 {[%clk 0:00:01]}  c5 {[%clk 0:00:01]} 4. d5 {[%clk 0:00:01]}  b5 {[%clk 0:00:01]} 5. cxb5 {[%clk 0:00:01]}  axb5 {[%clk 0:00:01]} 6. Nxb5 {[%clk 0:00:01]}  Qa5+ {[%clk 0:00:01]} 7. Nc3 {[%clk 0:00:01]}  Bb7 {[%clk 0:00:01]} 8. Bd2 {[%clk 0:00:01]}  Qb6 {[%clk 0:00:01]} 9. e4 {[%clk 0:00:01]}  e6 {[%clk 0:00:01]} 10. Bc4 {[%clk 0:00:01]}  Nxe4 {[%clk 0:00:01]} 11. dxe6 {[%clk 0:00:01]}  fxe6 {[%clk 0:00:01]} 12. Nxe4 {[%clk 0:00:01]}  Bxe4 {[%clk 0:00:01]} 13. Nf3 {[%clk 0:00:01]}  Be7 {[%clk 0:00:01]} 14. O-O {[%clk 0:00:01]}  O-O {[%clk 0:00:01]} 15. Ng5 {[%clk 0:00:01]}  Bg6 {[%clk 0:00:01]} 16. h4 {[%clk 0:00:01]}  h6 {[%clk 0:00:01]} 17. h5 {[%clk 0:00:00]}  Bf5 {[%clk 0:00:01]} 18. Nf3 {[%clk 0:00:00]}  Bg4 {[%clk 0:00:01]} 19. Be2 {[%clk 0:00:00]}  Bxh5 {[%clk 0:00:01]} 20. Bc3 {[%clk 0:00:00]}  d5 {[%clk 0:00:01]} 21. Ne5 {[%clk 0:00:00]}  Bxe2 {[%clk 0:00:01]} 22. Qxe2 {[%clk 0:00:00]}  Bf6 {[%clk 0:00:01]} 23. f4 {[%clk 0:00:00]}  Qd6 {[%clk 0:00:01]} 24. Ng6 {[%clk 0:00:00]}  Rf7 {[%clk 0:00:01]} 25. Be5 {[%clk 0:00:00]}  Qd7 {[%clk 0:00:00]} 26. a3 {[%clk 0:00:00]}  Nc6 {[%clk 0:00:00]} 27. Bxf6 {[%clk 0:00:00]}  Rxf6 {[%clk 0:00:00]} 28. Ne5 {[%clk 0:00:00]}  Nxe5 {[%clk 0:00:00]} 29. Qxe5 {[%clk 0:00:00]}  Rf5 {[%clk 0:00:00]} 30. Qc3 {[%clk 0:00:00]}  d4 {[%clk 0:00:00]} 31. Qc4 {[%clk 0:00:00]}  Qd5 {[%clk 0:00:00]} 32. Rac1 {[%clk 0:00:00]}  Raf8 {[%clk 0:00:00]} 33. Qxd5 {[%clk 0:00:00]}  Rxd5 {[%clk 0:00:00]} 34. g3 {[%clk 0:00:00]}  g5 {[%clk 0:00:00]} 35. fxg5 {[%clk 0:00:00]}  Rxf1+ {[%clk 0:00:00]} 36. Kxf1 {[%clk 0:00:00]}  Rxg5 {[%clk 0:00:00]} 37. Kf2 {[%clk 0:00:00]}  Kf7 {[%clk 0:00:00]} 38. a4 {[%clk 0:00:00]}  Ke7 {[%clk 0:00:00]} 39. a5 {[%clk 0:00:00]}  Kd6 {[%clk 0:00:00]} 40. a6 {[%clk 0:00:00]}  Rg8 {[%clk 0:00:00]} 41. Ra1 {[%clk 0:00:00]}  Ra8 {[%clk 0:00:00]} 42. a7 {[%clk 0:00:00]}  Kc7 {[%clk 0:00:00]} 43. Ra6 {[%clk 0:00:00]}  e5 {[%clk 0:00:00]} 44. Kf3 {[%clk 0:00:00]}  Kb7 {[%clk 0:00:00]} 45. Ra5 {[%clk 0:00:00]}  Kb6 {[%clk 0:00:00]} 46. b4 {[%clk 0:00:00]}  cxb4 {[%clk 0:00:00]} 47. Rxe5 {[%clk 0:00:00]}  b3 {[%clk 0:00:00]} 48. Re1 {[%clk 0:00:00]}  Kc5 {[%clk 0:00:00]} 49. Rb1 {[%clk 0:00:00]}  Kb4 {[%clk 0:00:00]} 50. Ke4 {[%clk 0:00:00]}  Rxa7 {[%clk 0:00:00]} 51. Kxd4 {[%clk 0:00:00]}  Rg7 {[%clk 0:00:00]} 0-1


[Site "https://www.chess.com"]

[Event "Titled Tuesday Blitz May 2 Early 2023"]
[White "Singh, Arvinder Preet"]
[Black "Tasev, Dejan"]
[WhiteFideId "5013240"]
[BlackFideId "936618"]
[WhiteElo "2124"]
[BlackElo "2244"]
[Result "1-0"]
[Round "11"]
[TimeControl "180+2"]
[Date "2023.05.03"]
[WhiteClock "0:00:00"]
[BlackClock "0:00:00"]

1. e4 {[%clk 0:00:01]}  e6 {[%clk 0:00:01]} 2. d4 {[%clk 0:00:01]}  d5 {[%clk 0:00:01]} 3. Nc3 {[%clk 0:00:01]}  Nf6 {[%clk 0:00:01]} 4. e5 {[%clk 0:00:01]}  Ng8 {[%clk 0:00:01]} 5. f4 {[%clk 0:00:01]}  h5 {[%clk 0:00:01]} 6. Nf3 {[%clk 0:00:01]}  g6 {[%clk 0:00:01]} 7. Be3 {[%clk 0:00:01]}  a6 {[%clk 0:00:01]} 8. Bd3 {[%clk 0:00:01]}  Nh6 {[%clk 0:00:01]} 9. Ne2 {[%clk 0:00:01]}  Nf5 {[%clk 0:00:01]} 10. Bf2 {[%clk 0:00:01]}  Be7 {[%clk 0:00:01]} 11. c3 {[%clk 0:00:01]}  b6 {[%clk 0:00:01]} 12. Qd2 {[%clk 0:00:01]}  c5 {[%clk 0:00:01]} 13. dxc5 {[%clk 0:00:01]}  bxc5 {[%clk 0:00:01]} 14. b4 {[%clk 0:00:01]}  Nd7 {[%clk 0:00:01]} 15. O-O {[%clk 0:00:01]}  h4 {[%clk 0:00:01]} 16. Bxf5 {[%clk 0:00:01]}  gxf5 {[%clk 0:00:01]} 17. Ng5 {[%clk 0:00:01]}  Bb7 {[%clk 0:00:01]} 18. a3 {[%clk 0:00:01]}  Qc7 {[%clk 0:00:01]} 19. Rab1 {[%clk 0:00:01]}  Qc6 {[%clk 0:00:01]} 20. bxc5 {[%clk 0:00:01]}  d4 {[%clk 0:00:00]} 21. Rxb7 {[%clk 0:00:01]}  Qxb7 {[%clk 0:00:00]} 22. cxd4 {[%clk 0:00:01]}  Bxg5 {[%clk 0:00:00]} 23. fxg5 {[%clk 0:00:01]}  h3 {[%clk 0:00:00]} 24. gxh3 {[%clk 0:00:00]}  Rxh3 {[%clk 0:00:00]} 25. Nf4 {[%clk 0:00:00]}  Rh7 {[%clk 0:00:00]} 26. g6 {[%clk 0:00:00]}  fxg6 {[%clk 0:00:00]} 27. Nxe6 {[%clk 0:00:00]}  Qf3 {[%clk 0:00:00]} 28. Nc7+ {[%clk 0:00:00]}  Ke7 {[%clk 0:00:00]} 29. Qg5+ {[%clk 0:00:00]}  Kf8 {[%clk 0:00:00]} 30. Bg3 {[%clk 0:00:00]}  Qe4 {[%clk 0:00:00]} 31. Rf4 {[%clk 0:00:00]}  Qb1+ {[%clk 0:00:00]} 32. Rf1 {[%clk 0:00:00]}  Qe4 {[%clk 0:00:00]} 33. Nxa8 {[%clk 0:00:00]}  Qxd4+ {[%clk 0:00:00]} 34. Bf2 {[%clk 0:00:00]}  Qxe5 {[%clk 0:00:00]} 35. Qd8+ {[%clk 0:00:00]}  Qe8 {[%clk 0:00:00]} 36. Qxe8+ {[%clk 0:00:00]}  Kxe8 {[%clk 0:00:00]} 37. Nc7+ {[%clk 0:00:00]}  Kd8 {[%clk 0:00:00]} 38. Ne6+ {[%clk 0:00:00]}  Kc8 {[%clk 0:00:00]} 39. Bg3 {[%clk 0:00:00]}  Nf6 {[%clk 0:00:00]} 40. Rb1 {[%clk 0:00:00]}  Kd7 {[%clk 0:00:00]} 41. Nf8+ {[%clk 0:00:00]}  Kc6 {[%clk 0:00:00]} 42. Nxh7 {[%clk 0:00:00]}  Nxh7 {[%clk 0:00:00]} 43. Rc1 {[%clk 0:00:00]}  Ng5 {[%clk 0:00:00]} 44. Bd6 {[%clk 0:00:00]}  Ne4 {[%clk 0:00:00]} 45. h4 {[%clk 0:00:00]}  g5 {[%clk 0:00:00]} 46. h5 {[%clk 0:00:00]}  g4 {[%clk 0:00:00]} 47. h6 {[%clk 0:00:00]}  Ng5 {[%clk 0:00:00]} 48. Bf4 {[%clk 0:00:00]}  Nh3+ {[%clk 0:00:00]} 49. Kh2 {[%clk 0:00:00]}  Nxf4 {[%clk 0:00:00]} 50. h7 {[%clk 0:00:00]}  Ng6 {[%clk 0:00:00]} 51. Kg3 {[%clk 0:00:00]}  Kc7 {[%clk 0:00:00]} 52. c6 {[%clk 0:00:00]}  a5 {[%clk 0:00:00]} 53. a4 {[%clk 0:00:00]}  Kc8 {[%clk 0:00:00]} 54. c7 {[%clk 0:00:00]} 1-0


[Site "https://www.chess.com"]

[Event "Titled Tuesday Blitz May 2 Early 2023"]
[White "Florescu, Codrut-Constantin"]
[Black "Loiacono, Antonio"]
[WhiteFideId "1202200"]
[BlackFideId "895415"]
[WhiteElo "2191"]
[BlackElo "2257"]
[Result "0-1"]
[Round "11"]
[TimeControl "180+2"]
[Date "2023.05.03"]
[WhiteClock "0:00:00"]
[BlackClock "0:00:01"]

1. e4 {[%clk 0:00:01]}  e5 {[%clk 0:00:01]} 2. Nf3 {[%clk 0:00:01]}  Nc6 {[%clk 0:00:01]} 3. Bc4 {[%clk 0:00:01]}  Bc5 {[%clk 0:00:01]} 4. d3 {[%clk 0:00:01]}  Nf6 {[%clk 0:00:01]} 5. h3 {[%clk 0:00:01]}  h6 {[%clk 0:00:01]} 6. a4 {[%clk 0:00:01]}  a6 {[%clk 0:00:01]} 7. Nbd2 {[%clk 0:00:01]}  d6 {[%clk 0:00:01]} 8. c3 {[%clk 0:00:01]}  Ba7 {[%clk 0:00:01]} 9. Nf1 {[%clk 0:00:01]}  O-O {[%clk 0:00:01]} 10. Be3 {[%clk 0:00:01]}  Bxe3 {[%clk 0:00:01]} 11. Nxe3 {[%clk 0:00:01]}  Ne7 {[%clk 0:00:01]} 12. O-O {[%clk 0:00:01]}  Ng6 {[%clk 0:00:01]} 13. h4 {[%clk 0:00:01]}  c6 {[%clk 0:00:01]} 14. g3 {[%clk 0:00:01]}  d5 {[%clk 0:00:01]} 15. exd5 {[%clk 0:00:01]}  cxd5 {[%clk 0:00:01]} 16. Ba2 {[%clk 0:00:01]}  Be6 {[%clk 0:00:01]} 17. Qe2 {[%clk 0:00:01]}  Re8 {[%clk 0:00:01]} 18. Rae1 {[%clk 0:00:01]}  Bh3 {[%clk 0:00:01]} 19. Ng2 {[%clk 0:00:01]}  Qd7 {[%clk 0:00:01]} 20. Nh2 {[%clk 0:00:01]}  Rad8 {[%clk 0:00:01]} 21. f3 {[%clk 0:00:00]}  Qxa4 {[%clk 0:00:01]} 22. Bb1 {[%clk 0:00:00]}  Qd7 {[%clk 0:00:01]} 23. g4 {[%clk 0:00:00]}  Bxg2 {[%clk 0:00:01]} 24. Kxg2 {[%clk 0:00:00]}  Nf4+ {[%clk 0:00:01]} 0-1


[Site "https://www.chess.com"]